fUSD/lending_fUSD_20260108
["ID","MTS","AMOUNT","RATE_DAILY","PERIOD"]
[401079957,1767909041443,-1000.0,0.00016765,2]
[401079958,1767909041453,-500.0,0.00016766,2]
[401079959,1767909041462,-4609.0,0.00016805,2]
[401079960,1767909041471,-3000.0,0.00016808,7]
[401079961,1767909041480,-1000.0,0.0001681,2]
[401079962,1767909041489,-1000.0,0.00016818,2]
[401079963,1767909041498,-500.0,0.00016821,2]
[401079964,1767909041507,-166.66,0.00016827,2]
[401079965,1767909041516,-150.0,0.00016848,2]
[401079966,1767909041525,-4112.22607999,0.00016859,2]
[401079967,1767909041533,-500.0,0.00016876,2]
[401079968,1767909041542,-150.0,0.000169,2]
[401079969,1767909041552,-500.0,0.00016931,2]
[401079970,1767909041561,-1000.0,0.00016948,2]
[401079971,1767909041569,-1000.0,0.00016962,2]
[401079972,1767909041578,-208.22403406,0.00016985,2]
[401079973,1767909041587,-3293.8,0.00016986,2]
[401079974,1767909041597,-7440.97846112,0.00016999,2]
[401079975,1767909041606,-776.2285,0.00017,2]
[401079976,1767909041615,-250.0,0.00017,2]
[401079977,1767909041624,-3032.44949746,0.00017,2]
[401079978,1767909041633,-4112.22607999,0.00017032,2]
[401079979,1767909041952,-833.0,0.0001704,2]
[401079980,1767909041963,-162.0,0.0001704,2]
[401079981,1767909041972,-833.0,0.0001704,2]
[401079982,1767909041981,-157.72323008,0.00017051,2]
[401079983,1767909041990,-500.0,0.00017098,2]
[401079984,1767909041999,-3180.75325131,0.00017099,2]
[401079985,1767909042009,-359.76179104,0.00017099,2]
[401079986,1767909042018,-151.0,0.00017099,2]
[401079987,1767909042028,-250.0,0.00017099,2]
[401079988,1767909042038,-1500.0,0.00017099,2]
[401079989,1767909042048,-250.0,0.00017099,2]
[401079990,1767909042057,-250.0,0.00017099,2]
[401079991,1767909042067,-293.26916709,0.00017099,2]
[401079992,1767909042076,-1500.0,0.00017099,2]
[401079993,1767909042085,-250.0,0.00017099,2]
[401079994,1767909042094,-250.0,0.00017099,2]
[401079995,1767909042103,-1500.0,0.00017099,2]
[401079996,1767909042112,-250.0,0.00017099,2]
[401079997,1767909042122,-250.0,0.00017099,2]
[401079998,1767909042131,-1500.0,0.00017099,2]
[401079999,1767909042140,-250.0,0.00017099,2]
[401080000,1767909042149,-1316.20759869,0.00017099,2]
[401080001,1767909042158,-1500.0,0.00017099,2]
[401080002,1767909042167,-250.0,0.00017099,2]
[401080003,1767909042176,-1500.0,0.00017099,2]
[401080004,1767909042185,-250.0,0.00017099,2]
[401080005,1767909042195,-1500.0,0.00017099,2]
[401080006,1767909042203,-250.0,0.00017099,2]
[401080007,1767909042213,-1500.0,0.00017099,2]
[401080008,1767909042222,-250.0,0.00017099,2]
[401080009,1767909042231,-500.0,0.00017099,2]
[401080010,1767909042241,-250.0,0.00017099,2]
[401080011,1767909042250,-1500.0,0.00017099,2]
[401080012,1767909042263,-500.0,0.00017099,2]
[401080013,1767909042272,-250.0,0.00017099,2]
[401080014,1767909042282,-1500.0,0.00017099,2]
[401080015,1767909042293,-500.0,0.00017099,2]
[401080016,1767909042305,-250.0,0.00017099,2]
[401080017,1767909042316,-1500.0,0.00017099,2]
[401080018,1767909042326,-1500.0,0.00017099,2]
[401080019,1767909042336,-500.0,0.00017099,2]
[401080020,1767909042345,-695.39793187,0.00017099,2]
[401080021,1767909042355,-500.0,0.00017099,2]
[401080022,1767909042365,-500.0,0.00017099,2]
[401080023,1767909042374,-500.0,0.00017099,2]
[401080024,1767909042383,-500.0,0.00017099,2]
[401080025,1767909042392,-500.0,0.00017099,2]
[401080026,1767909042402,-500.0,0.00017099,2]
[401080027,1767909042412,-500.0,0.00017099,2]
[401080028,1767909042421,-500.0,0.00017099,2]
[401080029,1767909042430,-500.0,0.00017099,2]
[401080030,1767909042439,-260.34840278,0.00017099,2]
[401080031,1767909042448,-500.0,0.00017099,2]
[401080032,1767909042457,-500.0,0.00017099,2]
[401080033,1767909042467,-500.0,0.00017099,2]
[401080034,1767909042476,-500.0,0.00017099,2]
[401080035,1767909042486,-500.0,0.00017099,2]
[401080036,1767909042495,-500.0,0.00017099,2]
[401080037,1767909042504,-500.0,0.00017099,2]
[401080038,1767909042513,-500.0,0.00017099,2]
[401080039,1767909042523,-500.0,0.00017099,2]
[401080040,1767909042532,-578.20924308,0.00017099,2]
[401080041,1767909042542,-500.0,0.00017099,2]
[401080042,1767909042551,-500.0,0.00017099,2]
[401080043,1767909042560,-500.0,0.00017099,2]
[401080044,1767909042569,-553.64373807,0.00017099,2]
[401080045,1767909042580,-500.0,0.00017099,2]
[401080046,1767909042589,-500.0,0.00017099,2]
[401080047,1767909042597,-500.0,0.00017099,2]
[401080048,1767909042607,-500.0,0.00017099,2]
[401080049,1767909042616,-500.0,0.00017099,2]
[401080050,1767909042626,-500.0,0.00017099,2]
[401080051,1767909042635,-250.0,0.00017099,2]
[401080052,1767909042644,-500.0,0.00017099,2]
[401080053,1767909042653,-151.0,0.00017099,2]
[401080054,1767909042662,-500.0,0.00017099,2]
[401080055,1767909042672,-500.0,0.00017099,2]
[401080056,1767909042681,-500.0,0.00017099,2]
[401080057,1767909042690,-500.0,0.00017099,2]
[401080058,1767909042700,-500.0,0.00017099,2]
[401080059,1767909042710,-500.0,0.00017099,2]
[401080060,1767909042719,-500.0,0.00017099,2]
[401080061,1767909042728,-500.0,0.00017099,2]
[401080062,1767909042738,-500.0,0.00017099,2]
[401080063,1767909042747,-500.0,0.00017099,2]
[401080064,1767909042756,-500.0,0.00017099,2]
[401080065,1767909042765,-500.0,0.00017099,2]
[401080066,1767909042774,-500.0,0.00017099,2]
[401080067,1767909042784,-500.0,0.00017099,2]
[401080068,1767909042793,-322.6107,0.00017099,2]
[401080069,1767909042802,-500.0,0.00017099,2]
[401080070,1767909042811,-500.0,0.00017099,2]
[401080071,1767909042820,-500.0,0.00017099,2]
[401080072,1767909042830,-529.58639713,0.00017099,2]
[401080073,1767909042840,-151.0,0.00017099,2]
[401080074,1767909042849,-2000.0,0.00017099,2]
[401080075,1767909042859,-2000.0,0.00017099,2]
[401080076,1767909042868,-2000.0,0.00017099,2]
[401080077,1767909042877,-620.0,0.00017099,2]
[401080078,1767909042887,-2000.0,0.00017099,2]
[401080079,1767909042897,-2000.0,0.00017099,2]
[401080080,1767909042907,-2000.0,0.00017099,2]
[401080081,1767909042917,-2000.0,0.00017099,2]
[401080082,1767909042927,-2000.0,0.00017099,2]
[401080083,1767909042938,-2000.0,0.00017099,2]
[401080084,1767909042948,-2000.0,0.00017099,2]
[401080085,1767909042958,-2000.0,0.00017099,2]
[401080086,1767909042967,-2000.0,0.00017099,2]
[401080087,1767909042977,-7440.97846108,0.00017099,2]
[401080088,1767909042988,-1000.0,0.000171,2]
[401080089,1767909042997,-20452.74518303,0.000171,2]
[401080090,1767909043006,-150.0,0.0001711,2]
[401080091,1767909043016,-213.0,0.0001711,2]
[401080092,1767909043026,-302.46,0.0001711,2]
[401080093,1767909043035,-350.94134188,0.0001711,2]
[401080094,1767909043043,-2276.96201759,0.00017135,2]
[401080095,1767909043053,-31124.03182365,0.00017135,2]
[401080096,1767909043062,-1000.0,0.00017141,2]
[401080097,1767909043071,-1000.0,0.00017146,2]
[401080098,1767909043082,-1000.0,0.00017174,2]
[401080099,1767909043092,-200.0,0.00017174,2]
[401080100,1767909043103,-1000.0,0.00017177,2]
[401080101,1767909043114,-150.0,0.00017194,2]
[401080102,1767909043124,-7440.97846108,0.00017199,2]
[401080103,1767909043134,-258.31,0.00017205,2]
[401080104,1767909043144,-4112.22607999,0.00017206,2]
[401080105,1767909043154,-1000.0,0.00017221,2]
[401080106,1767909043163,-1000.0,0.00017224,2]
[401080107,1767909043172,-1252.0,0.00017233,2]
[401080108,1767909043181,-3293.8,0.0001726,2]
[401080109,1767909043191,-150.0,0.00017272,2]
[401080110,1767909043200,-7440.97846108,0.00017299,2]
[401080111,1767909043210,-166.66,0.00017318,2]
[401080112,1767909043220,-1000.0,0.00017326,2]
[401080113,1767909043229,-1000.0,0.00017353,2]
[401080114,1767909043239,-1000.0,0.00017354,2]
[401080115,1767909043249,-833.0,0.0001736,2]
[401080116,1767909043260,-833.0,0.0001736,2]
[401080117,1767909043270,-150.0,0.00017366,2]
[401080118,1767909043279,-1000.0,0.00017367,2]
[401080119,1767909043288,-4112.22607999,0.00017379,2]
[401080120,1767909043298,-1000.0,0.00017382,2]
[401080121,1767909043307,-7440.97846108,0.00017399,2]
[401080122,1767909043316,-1000.0,0.000174,2]
[401080123,1767909043327,-1000.0,0.00017411,2]
[401080124,1767909043337,-1000.0,0.00017417,2]
[401080125,1767909043346,-1000.0,0.00017424,2]
[401080126,1767909043356,-150.0,0.00017426,2]
[401080127,1767909043367,-150.0,0.00017437,2]
[401080128,1767909043376,-1000.0,0.00017465,2]
[401080129,1767909043386,-150.0,0.00017465,2]
[401080130,1767909043396,-150.0,0.00017479,2]
[401080131,1767909043404,-1000.0,0.00017499,2]
[401080132,1767909043413,-7440.97846108,0.000175,2]
[401080133,1767909043423,-2000.0,0.000175,2]
[401080134,1767909043433,-168.52,0.00017517,2]
[401080135,1767909043442,-150.0,0.00017524,2]
[401080136,1767909043451,-150.0,0.00017529,2]
[401080137,1767909043463,-3293.8,0.00017534,2]
[401080138,1767909043474,-242.30773041,0.00017534,2]
[401080139,1767909043483,-150.0,0.00017538,2]
[401080140,1767909043492,-1000.0,0.0001754,2]
[401080141,1767909043501,-1000.0,0.00017547,2]
[401080142,1767909043512,-1299.0,0.00017551,2]
[401080143,1767909043521,-4112.22607999,0.00017553,2]
[401080144,1767909043531,-1000.0,0.00017555,2]
[401080145,1767909043540,-1000.0,0.00017566,2]
[401080146,1767909043550,-150.0,0.00017569,2]
[401080147,1767909043559,-1000.0,0.00017581,2]
[401080148,1767909043568,-500.0,0.00017597,2]
[401080149,1767909043578,-7440.97846108,0.000176,2]
[401080150,1767909043587,-1000.0,0.00017602,2]
[401080151,1767909043597,-1000.0,0.00017611,2]
[401080153,1767909043607,-1000.0,0.00017614,2]
[401080154,1767909043617,-1000.0,0.0001762,2]
[401080155,1767909043627,-401.48234093,0.0001763,2]
[401080156,1767909043636,-1000.0,0.0001763,2]
[401080157,1767909043646,-15030.58394086,0.0001764,2]
[401080158,1767909043655,-373.07297731,0.00017647,2]
[401080159,1767909043664,-166.77833559,0.00017647,2]
[401080160,1767909043674,-574.12855637,0.00017647,2]
[401080161,1767909043683,-151.0,0.00017647,2]
[401080162,1767909043693,-181.49618348,0.00017651,2]
[401080163,1767909043702,-150.0,0.00017659,2]
[401080164,1767909043713,-820.0305175,0.00017661,2]
[401080165,1767909043723,-150.0,0.00017663,2]
[401080166,1767909043732,-1299.0,0.00017669,2]
[401080167,1767909043740,-162.0,0.0001768,2]
[401080168,1767909043750,-833.0,0.0001768,2]
[401080169,1767909043759,-833.0,0.0001768,2]
[401080170,1767909043768,-171.03335191,0.00017683,2]
[401080171,1767909043778,-1000.0,0.00017684,2]
[401080172,1767909043787,-1000.0,0.00017689,2]
[401080173,1767909043796,-150.0,0.00017692,2]
[401080174,1767909043805,-1000.0,0.00017695,2]
[401080175,1767909043815,-25000.0,0.00017698,3]
[401080176,1767909043824,-7440.97846108,0.000177,2]
[401080177,1767909043833,-4280.56502844,0.000177,2]
[401080178,1767909043842,-1000.0,0.000177,2]
[401080179,1767909043852,-150.0,0.00017701,2]
[401080180,1767909043861,-150.0,0.00017704,2]
[401080181,1767909043871,-500.0,0.00017706,2]
[401080182,1767909043880,-570.43,0.00017706,2]
[401080183,1767909043889,-25000.0,0.00017706,3]
[401080184,1767909043908,-25000.0,0.00017715,3]
[401080185,1767909043918,-1000.0,0.00017723,2]
[401080186,1767909043929,-25000.0,0.00017724,3]
[401080187,1767909043938,-171.03335186,0.00017726,2]
[401080188,1767909043947,-4112.22607999,0.00017726,2]
[401080189,1767909043956,-2502.08,0.00017728,2]
[401080190,1767909043967,-9999.99,0.00017728,2]
[401080191,1767909043977,-25000.0,0.00017733,3]
[401080192,1767909043986,-157.72323008,0.00017733,2]
[401080193,1767909043995,-25000.0,0.00017742,3]
[401080194,1767909044007,-1000.0,0.00017746,2]
[401080195,1767909044017,-459.26722753,0.00017749,2]
[401080196,1767909044028,-25000.0,0.0001775,3]
[401080197,1767909044039,-1000.0,0.00017751,2]
[401080198,1767909044048,-7567.0,0.00017753,2]
[401080199,1767909044059,-356.0,0.00017753,2]
[401080200,1767909044068,-2067.925,0.00017755,2]
[401080201,1767909044077,-206.33,0.00017755,2]
[401080202,1767909044088,-672.25565836,0.00017756,2]
[401080203,1767909044098,-25000.0,0.00017759,3]
[401080204,1767909044107,-1000.0,0.00017761,2]
[401080205,1767909044117,-1000.0,0.00017762,2]
[401080206,1767909044126,-1000.0,0.00017764,2]
[401080207,1767909044135,-25000.0,0.00017768,3]
[401080208,1767909044144,-171.03335186,0.0001777,2]
[401080209,1767909044154,-1000.0,0.00017774,2]
[401080210,1767909044163,-181.49618346,0.00017776,2]
[401080211,1767909044172,-1000.0,0.00017776,2]
[401080212,1767909044181,-25000.0,0.00017777,3]
[401080213,1767909044190,-500.0,0.00017778,2]
[401080214,1767909044199,-570.43,0.00017778,2]
[401080215,1767909044209,-151.0,0.00017779,2]
[401080216,1767909044219,-500.0,0.00017782,2]
[401080217,1767909044228,-500.0,0.00017782,2]
[401080218,1767909044237,-500.0,0.00017782,2]
[401080219,1767909044247,-500.0,0.00017782,2]
[401080220,1767909044258,-570.43,0.00017782,2]
[401080221,1767909044271,-570.43,0.00017782,2]
[401080222,1767909044281,-570.43,0.00017782,2]
[401080223,1767909044290,-570.43,0.00017782,2]
[401080224,1767909044301,-672.25565833,0.00017785,2]
[401080225,1767909044310,-25000.0,0.00017786,3]
[401080226,1767909044319,-1000.0,0.00017786,2]
[401080227,1767909044330,-25000.0,0.00017794,3]
[401080228,1767909044339,-7440.97846108,0.000178,2]
[401080229,1767909044358,-25000.0,0.00017803,3]
[401080230,1767909044378,-3293.8,0.00017808,2]
[401080231,1767909044398,-1000.0,0.0001781,2]
[401080232,1767909044419,-25000.0,0.00017812,3]
[401080233,1767909044429,-171.03335186,0.00017813,2]
[401080234,1767909044440,-672.25565833,0.00017814,2]
[401080235,1767909044451,-1000.0,0.00017819,2]
[401080236,1767909044461,-1000.0,0.0001782,2]
[401080237,1767909044472,-2010.72441,0.0001782,2]
[401080238,1767909044483,-2010.72441,0.0001782,2]
[401080239,1767909044493,-2010.72441,0.0001782,2]
[401080240,1767909044502,-2010.72441,0.0001782,2]
[401080241,1767909044516,-758.96088212,0.0001782,2]
[401080242,1767909044525,-25000.0,0.00017821,3]
[401080243,1767909044535,-25000.0,0.0001783,3]
[401080244,1767909044544,-2563.74337966,0.0001783,2]
[401080245,1767909044554,-1000.0,0.00017833,2]
[401080246,1767909044563,-151.0,0.00017835,2]
[401080247,1767909044573,-500.0,0.00017838,2]
[401080248,1767909044583,-570.43,0.00017838,2]
[401080249,1767909044593,-25000.0,0.00017838,3]
[401080250,1767909044602,-672.25565833,0.00017842,2]
[401080251,1767909044612,-1000.0,0.00017847,2]
[401080252,1767909044622,-25000.0,0.00017847,3]
[401080253,1767909044631,-2000.0,0.00017855,2]
[401080254,1767909044641,-200.0,0.00017855,2]
[401080255,1767909044651,-200.0,0.00017856,2]
[401080256,1767909044661,-25000.0,0.00017856,3]
[401080257,1767909044671,-2000.0,0.00017856,2]
[401080258,1767909044681,-200.0,0.00017856,2]
[401080259,1767909044691,-200.0,0.00017856,2]
[401080260,1767909044701,-171.03335186,0.00017857,2]
[401080261,1767909044715,-1000.0,0.0001786,2]
[401080262,1767909044725,-1000.0,0.00017862,2]
[401080263,1767909044735,-1000.0,0.00017863,2]
[401080264,1767909044745,-25000.0,0.00017865,3]
[401080265,1767909044755,-1000.0,0.00017869,2]
[401080266,1767909044765,-672.25565833,0.00017871,2]
[401080267,1767909044775,-25000.0,0.00017874,3]
[401080268,1767909044785,-1000.0,0.00017877,2]
[401080269,1767909044795,-25000.0,0.00017882,3]
[401080270,1767909044805,-1000.0,0.00017887,2]
[401080271,1767909044814,-1000.0,0.00017889,2]
[401080272,1767909044824,-25000.0,0.00017891,3]
[401080273,1767909044834,-25000.0,0.00017891,3]
[401080274,1767909044844,-10000.0,0.000179,2]
[401080275,1767909044855,-171.03335186,0.000179,2]
[401080276,1767909044865,-25000.0,0.000179,3]
[401080277,1767909044875,-1000.0,0.000179,2]
[401080278,1767909044885,-4112.22607999,0.000179,2]
[401080279,1767909044895,-190.04272048,0.000179,3]
[401080280,1767909044908,-211.88264941,0.000179,2]
[401080281,1767909044918,-10864.220747,0.000179,2]
[401080282,1767909044928,-672.25565833,0.000179,2]
[401080283,1767909044938,-181.49618346,0.000179,2]
[401080284,1767909044948,-7440.97846108,0.000179,2]
[401080285,1767909044958,-306.94008536,0.000179,2]
[401080286,1767909044969,-17117.0,0.000179,2]
[401080287,1767909044978,-500.0,0.00017903,2]
[401080288,1767909044988,-570.43,0.00017903,2]
[401080289,1767909044998,-3000.0,0.00017904,7]
[401080290,1767909045007,-177.4888516,0.00017905,3]
[401080291,1767909045017,-1000.0,0.00017915,2]
[401080292,1767909045026,-1000.0,0.00017916,2]
[401080293,1767909045036,-1000.0,0.00017918,2]
[401080294,1767909045046,-150.0,0.00017924,2]
[401080295,1767909045056,-1000.0,0.00017927,2]
[401080296,1767909045065,-1299.0,0.00017933,2]
[401080297,1767909045075,-1000.0,0.0001794,2]
[401080298,1767909045085,-500.0,0.0001797,2]
[401080299,1767909045097,-500.0,0.0001797,2]
[401080300,1767909045108,-500.0,0.0001797,2]
[401080301,1767909045117,-500.0,0.0001797,2]
[401080302,1767909045128,-500.0,0.0001797,2]
[401080303,1767909045139,-1000.0,0.0001797,2]
[401080304,1767909045148,-500.0,0.0001797,2]
[401080305,1767909045158,-584.41347442,0.0001797,2]
[401080306,1767909045168,-1000.0,0.0001797,2]
[401080307,1767909045178,-1000.0,0.0001797,2]
[401080308,1767909045187,-1000.0,0.0001797,2]
[401080309,1767909045198,-1000.0,0.0001797,2]
[401080310,1767909045207,-1000.0,0.0001797,2]
[401080311,1767909045219,-1000.0,0.0001797,2]
[401080312,1767909045228,-1000.0,0.0001797,2]
[401080313,1767909045238,-1446.54474908,0.0001797,2]
[401080314,1767909045247,-8200.0,0.00017973,2]
[401080315,1767909045260,-500.0,0.00017973,2]
[401080316,1767909045270,-150.0,0.00017973,2]
[401080317,1767909045282,-504.45710441,0.00017973,2]
[401080318,1767909045292,-160.89060159,0.00017973,2]
[401080319,1767909045305,-159.904,0.00017973,2]
[401080320,1767909045315,-500.0,0.00017973,2]
[401080321,1767909045325,-500.0,0.00017973,2]
[401080322,1767909045335,-500.0,0.00017973,2]
[401080323,1767909045345,-500.0,0.00017973,2]
[401080324,1767909045355,-500.0,0.00017973,2]
[401080325,1767909045366,-513.02244381,0.00017973,2]
[401080326,1767909045376,-500.17178809,0.00017973,2]
[401080327,1767909045385,-568.48476984,0.00017973,2]
[401080328,1767909045395,-426.73386812,0.00017973,2]
[401080329,1767909045405,-500.0,0.00017973,2]
[401080330,1767909045416,-504.24318867,0.00017973,2]
[401080331,1767909045427,-500.0,0.00017973,2]
[401080332,1767909045437,-500.0,0.00017973,2]
[401080333,1767909045449,-500.0,0.00017973,2]
[401080334,1767909045461,-500.0,0.00017973,2]
[401080335,1767909045471,-500.0,0.00017973,2]
[401080336,1767909045480,-150.49880534,0.00017973,2]
[401080337,1767909045491,-500.0,0.00017973,2]
[401080338,1767909045503,-500.0,0.00017973,2]
[401080339,1767909045514,-501.18870733,0.00017973,2]
[401080340,1767909045524,-500.0,0.00017973,2]
[401080341,1767909045535,-500.0,0.00017973,2]
[401080342,1767909045546,-500.0,0.00017973,2]
[401080343,1767909045555,-385.16009683,0.00017973,2]
[401080344,1767909045565,-500.0,0.00017973,2]
[401080345,1767909045575,-500.0,0.00017973,2]
[401080346,1767909045585,-160.81509317,0.00017973,2]
[401080347,1767909045594,-500.0,0.00017973,2]
[401080348,1767909045604,-151.0,0.00017978,2]
[401080349,1767909045614,-500.0,0.0001798,2]
[401080350,1767909045625,-500.0,0.0001798,2]
[401080351,1767909045636,-500.0,0.0001798,2]
[401080352,1767909045646,-570.43,0.0001798,2]
[401080353,1767909045658,-570.43,0.0001798,2]
[401080354,1767909045668,-570.43,0.0001798,2]
[401080355,1767909045677,-20186.7788125,0.00017981,2]
[401080356,1767909045691,-740418.8864822,0.00017981,2]
[401080357,1767909045705,-3704.868636,0.00017981,2]
[401080358,1767909045715,-148481.9003562,0.00017981,2]
[401080359,1767909045726,-42300.5279395,0.00017981,2]
[401080360,1767909045736,-955.2280167,0.00017981,2]
[401080361,1767909045746,-1000.0,0.00017981,2]
[401080362,1767909045757,-151.0,0.00017981,2]
[401080363,1767909045767,-151.0,0.00017981,2]
[401080364,1767909045776,-151.0,0.00017981,2]
[401080366,1767909045786,-374.563037,0.00017981,2]
[401080367,1767909045796,-374.563037,0.00017981,2]
[401080369,1767909045812,-374.563037,0.00017981,2]
[401080370,1767909045831,-374.563037,0.00017981,2]
[401080372,1767909045844,-151.0,0.00017981,2]
[401080373,1767909045854,-151.0,0.00017981,2]
[401080374,1767909045865,-151.0,0.00017981,2]
[401080375,1767909045876,-151.0,0.00017981,2]
[401080376,1767909045887,-151.0,0.00017981,2]
[401080377,1767909045898,-150.0,0.0001799,2]
[401080378,1767909045909,-595.48370195,0.0001799,2]
[401080379,1767909045919,-595.48370195,0.0001799,2]
[401080380,1767909045929,-150.0,0.00017994,2]
[401080381,1767909045939,-500.0,0.00017996,2]
[401080382,1767909045951,-500.0,0.00017996,2]
[401080383,1767909045961,-500.0,0.00017996,2]
[401080384,1767909045971,-151.0,0.00017997,2]
[401080385,1767909045981,-150.0,0.00017999,2]
[401080386,1767909045992,-500.0,0.00017999,2]
[401080387,1767909046006,-500.0,0.00017999,2]
[401080388,1767909046017,-500.0,0.00017999,2]
[401080389,1767909046030,-500.0,0.00017999,2]
[401080390,1767909046041,-500.0,0.00017999,2]
[401080391,1767909046053,-500.0,0.00017999,2]
[401080392,1767909046064,-500.0,0.00017999,2]
[401080393,1767909046079,-500.0,0.00017999,2]
[401080394,1767909046091,-500.0,0.00017999,2]
[401080395,1767909046104,-500.0,0.00017999,2]
[401080396,1767909046119,-367.0513734,0.00017999,2]
[401080397,1767909046129,-300.0,0.00017999,2]
[401080398,1767909046139,-666.0,0.00017999,2]
[401080399,1767909046149,-300.0,0.00017999,2]
[401080400,1767909046160,-448.64136623,0.00017999,2]
[401080401,1767909046521,-300.0,0.00017999,2]
[401080402,1767909046530,-666.0,0.00017999,2]
[401080403,1767909046540,-300.0,0.00017999,2]
[401080404,1767909046549,-500.0,0.00017999,2]
[401080405,1767909046559,-500.0,0.00017999,2]
[401080406,1767909046568,-500.0,0.00017999,2]
[401080407,1767909046577,-500.0,0.00017999,2]
[401080408,1767909046587,-500.0,0.00017999,2]
[401080409,1767909046596,-500.0,0.00017999,2]
[401080410,1767909046605,-500.0,0.00017999,2]
[401080411,1767909046614,-500.0,0.00017999,2]
[401080412,1767909046623,-386.7677512,0.00017999,2]
[401080413,1767909046633,-300.0,0.00017999,2]
[401080414,1767909046642,-300.0,0.00017999,2]
[401080415,1767909046651,-666.0,0.00017999,2]
[401080416,1767909046661,-300.0,0.00017999,2]
[401080417,1767909046670,-300.0,0.00017999,2]
[401080418,1767909046680,-300.0,0.00017999,2]
[401080419,1767909046689,-666.0,0.00017999,2]
[401080420,1767909046698,-300.0,0.00017999,2]
[401080421,1767909046707,-300.0,0.00017999,2]
[401080422,1767909046716,-666.0,0.00017999,2]
[401080423,1767909046725,-1792.77089946,0.00017999,2]
[401080424,1767909046735,-570.43,0.00017999,2]
[401080425,1767909046744,-570.43,0.00017999,2]
[401080426,1767909046753,-570.43,0.00017999,2]
[401080427,1767909046762,-570.43,0.00017999,2]
[401080428,1767909046775,-570.43,0.00017999,2]
[401080429,1767909046785,-570.43,0.00017999,2]
[401080430,1767909046795,-570.43,0.00017999,2]
[401080431,1767909046804,-570.43,0.00017999,2]
[401080432,1767909046814,-570.43,0.00017999,2]
[401080433,1767909046823,-570.43,0.00017999,2]
[401080434,1767909046833,-570.43,0.00017999,2]
[401080435,1767909046844,-570.56599333,0.00017999,2]
[401080436,1767909046854,-5970.77362135,0.00017999,2]
[401080437,1767909046863,-1000.0,0.00018,2]
[401080438,1767909046873,-836.47750939,0.00018,2]
[401080439,1767909046883,-783944.18675288,0.00018,2]
[401080440,1767909050596,-220.06975,0.00017981,2]
[401080441,1767909050608,-220.06975,0.00017981,2]
[401080442,1767909050619,-172.8605,0.00017981,2]
[401080443,1767909050633,-47.20925,0.00017981,2]
[401080444,1767909050644,-458.77495,0.00017984,2]
[401080445,1767909050700,-541.22505,0.00017984,2]
[401080446,1767909050709,-3664.02653664,0.00018,2]
[401080459,1767909558220,457.16,0.00016,14]
[401080460,1767909558838,548.59,0.000142,5]
[401080461,1767909559687,548.59,0.00014,3]
[401080462,1767909560047,274.4,0.00014,7]
[401080463,1767909896701,999.0,0.00012604,3]
[401080473,1767910232310,-186.42024009,0.00011761,2]
[401080474,1767910232320,-812.57975991,0.00011763,2]
[401080475,1767910232331,-1847.71024009,0.00011763,2]
[401080476,1767910232341,-581.31,0.00011852,2]
[401080477,1767910232350,-250.0,0.00011857,2]
[401080478,1767910232359,-1200.0,0.0001186,2]
[401080480,1767910232368,-462.94975553,0.00011861,2]
[401080483,1767910232387,-1446.7295,0.00011861,2]
[401080485,1767910232398,-455.97674447,0.00011861,2]